fUSD/lending_fUSD_20250514
["ID","MTS","AMOUNT","RATE_DAILY","PERIOD"]
[361086153,1747243841030,-400.0,0.00010958,2]
[361086154,1747243841039,-490.71,0.00010958,2]
[361086155,1747243841048,-263.62692303,0.00010958,2]
[361086156,1747243841057,-400.0,0.00010958,2]
[361086157,1747243841067,-400.0,0.00010958,2]
[361086158,1747243841076,-400.0,0.00010958,2]
[361086159,1747243841085,-559.43724113,0.00010958,2]
[361086166,1747243842492,-71.88275887,0.00010958,2]
[361086167,1747243842502,-400.0,0.00010958,2]
[361086168,1747243842512,-503.79,0.00010958,2]
[361086169,1747243842521,-400.0,0.00010958,2]
[361086170,1747243842531,-2254.56,0.00010958,2]
[361086171,1747243842540,-476.07005962,0.00010958,2]
[361086172,1747243842550,-400.0,0.00010958,2]
[361086173,1747243842559,-881.62,0.00010958,2]
[361086174,1747243842568,-400.0,0.00010958,2]
[361086175,1747243842578,-844.65,0.00010958,2]
[361086176,1747243842589,-182.04881141,0.00010958,2]
[361086177,1747243842599,-400.0,0.00010958,2]
[361086178,1747243842608,-400.0,0.00010958,2]
[361086179,1747243842618,-400.0,0.00010958,2]
[361086180,1747243842628,-400.0,0.00010958,2]
[361086181,1747243842637,-400.0,0.00010958,2]
[361086182,1747243842647,-477.33559474,0.00010958,2]
[361086183,1747243842657,-400.0,0.00010958,2]
[361086184,1747243842668,-400.0,0.00010958,2]
[361086185,1747243842678,-400.0,0.00010958,2]
[361086186,1747243842688,-400.0,0.00010958,2]
[361086187,1747243842697,-400.0,0.00010958,2]
[361086188,1747243842707,-400.0,0.00010958,2]
[361086189,1747243842717,-463.23,0.00010958,2]
[361086190,1747243842727,-575.9,0.00010958,2]
[361086191,1747243842738,-413.66,0.00010958,2]
[361086192,1747243842749,-400.0,0.00010958,2]
[361086193,1747243842759,-400.0,0.00010958,2]
[361086194,1747243842770,-400.0,0.00010958,2]
[361086195,1747243842781,-2869.55,0.00010958,2]
[361086196,1747243842792,-1706.3,0.00010958,2]
[361086197,1747243842802,-400.0,0.00010958,2]
[361086198,1747243842811,-400.0,0.00010958,2]
[361086199,1747243842821,-4493.39,0.00010958,2]
[361086200,1747243842832,-1038.04,0.00010958,2]
[361086201,1747243842843,-400.0,0.00010958,2]
[361086202,1747243842853,-400.0,0.00010958,2]
[361086203,1747243842865,-492.27,0.00010958,2]
[361086204,1747243842875,-400.0,0.00010958,2]
[361086205,1747243842885,-400.0,0.00010958,2]
[361086206,1747243842895,-246.72799688,0.00010958,2]
[361086207,1747243842906,-490.15,0.00010958,2]
[361086208,1747243842919,-721.85,0.00010958,2]
[361086209,1747243842930,-400.0,0.00010958,2]
[361086210,1747243842941,-736.17,0.00010958,2]
[361086211,1747243842951,-400.0,0.00010958,2]
[361086212,1747243842961,-1943.62,0.00010958,2]
[361086213,1747243842972,-462.83,0.00010958,2]
[361086215,1747243842981,-1483.96,0.00010958,2]
[361086217,1747243842991,-672.43,0.00010958,2]
[361086218,1747243843001,-168.3056647,0.00010958,2]
[361086219,1747243843012,-400.0,0.00010958,2]
[361086220,1747243843022,-991.38,0.00010958,2]
[361086221,1747243843033,-400.0,0.00010958,2]
[361086222,1747243843043,-1126.59,0.00010958,2]
[361086223,1747243843054,-400.0,0.00010958,2]
[361086224,1747243843064,-7434.02,0.00010958,2]
[361086225,1747243843074,-400.0,0.00010958,2]
[361086226,1747243843084,-386.82567468,0.00010958,2]
[361086227,1747243843094,-400.0,0.00010958,2]
[361086228,1747243843103,-400.0,0.00010958,2]
[361086230,1747243843113,-530.47,0.00010958,2]
[361086231,1747243843122,-400.0,0.00010958,2]
[361086232,1747243843131,-400.0,0.00010958,2]
[361086233,1747243843140,-400.0,0.00010958,2]
[361086234,1747243843150,-400.0,0.00010958,2]
[361086235,1747243843160,-418.05108991,0.00010958,2]
[361086236,1747243843174,-6737.18,0.00010958,2]
[361086237,1747243843183,-445.65,0.00010958,2]
[361086238,1747243843193,-400.0,0.00010958,2]
[361086239,1747243843203,-5506.14,0.00010958,2]
[361086240,1747243843212,-400.0,0.00010958,2]
[361086241,1747243843222,-441.84,0.00010958,2]
[361086242,1747243843231,-16127.37,0.00010958,2]
[361086243,1747243843240,-1165.08,0.00010958,2]
[361086244,1747243843251,-400.0,0.00010958,2]
[361086245,1747243843261,-689.99,0.00010958,2]
[361086246,1747243843271,-400.0,0.00010958,2]
[361086247,1747243843280,-598.77,0.00010958,2]
[361086248,1747243843290,-400.0,0.00010958,2]
[361086249,1747243843300,-400.0,0.00010958,2]
[361086250,1747243843310,-570.78,0.00010958,2]
[361086251,1747243843320,-400.0,0.00010958,2]
[361086252,1747243843330,-586.31,0.00010958,2]
[361086253,1747243843340,-400.0,0.00010958,2]
[361086254,1747243843350,-500.0,0.00010958,2]
[361086255,1747243843361,-702.47,0.00010958,2]
[361086256,1747243843370,-400.0,0.00010958,2]
[361086257,1747243843381,-400.0,0.00010958,2]
[361086258,1747243843391,-423.06,0.00010958,2]
[361086259,1747243843400,-412.63,0.00010958,2]
[361086260,1747243843410,-8011.97,0.00010958,2]
[361086261,1747243843423,-408.63,0.00010958,2]
[361086262,1747243843432,-3401.7,0.00010958,2]
[361086263,1747243843442,-400.0,0.00010958,2]
[361086264,1747243843452,-1934.9,0.00010958,2]
[361086265,1747243843462,-1084.87,0.00010958,2]
[361086266,1747243843471,-400.0,0.00010958,2]
[361086267,1747243843481,-400.0,0.00010958,2]
[361086268,1747243843490,-400.0,0.00010958,2]
[361086269,1747243843500,-400.0,0.00010958,2]
[361086270,1747243843509,-20892.98,0.00010958,2]
[361086271,1747243843519,-751.82,0.00010958,2]
[361086272,1747243843529,-400.0,0.00010958,2]
[361086273,1747243843538,-443.7,0.00010958,2]
[361086274,1747243843548,-400.0,0.00010958,2]
[361086275,1747243843558,-400.0,0.00010958,2]
[361086276,1747243843568,-400.0,0.00010958,2]
[361086277,1747243843579,-400.0,0.00010958,2]
[361086278,1747243843589,-412.28,0.00010958,2]
[361086279,1747243843599,-1200.72,0.00010958,2]
[361086280,1747243843609,-61277.78,0.00010958,2]
[361086281,1747243843620,-780.8,0.00010958,2]
[361086282,1747243843632,-2274.52344468,0.00010958,2]
[361086283,1747243843642,-1350.81,0.00010958,2]
[361086284,1747243843651,-3260.1,0.00010958,2]
[361086285,1747243843662,-745.95,0.00010958,2]
[361086286,1747243843672,-400.0,0.00010958,2]
[361086287,1747243843680,-400.0,0.00010958,2]
[361086288,1747243843690,-400.0,0.00010958,2]
[361086289,1747243843699,-400.0,0.00010958,2]
[361086290,1747243843709,-400.0,0.00010958,2]
[361086291,1747243843719,-1647.83,0.00010958,2]
[361086292,1747243843728,-783.08,0.00010958,2]
[361086293,1747243843738,-400.0,0.00010958,2]
[361086294,1747243843748,-520.01802168,0.00010958,2]
[361086295,1747243843757,-400.0,0.00010958,2]
[361086296,1747243843768,-578.29,0.00010958,2]
[361086297,1747243843777,-472.23,0.00010958,2]
[361086298,1747243843787,-400.0,0.00010958,2]
[361086299,1747243843796,-859.53,0.00010958,2]
[361086300,1747243843806,-400.0,0.00010958,2]
[361086301,1747243843816,-618.27,0.00010958,2]
[361086302,1747243843826,-1322.44,0.00010958,2]
[361086303,1747243843835,-400.0,0.00010958,2]
[361086304,1747243843844,-400.0,0.00010958,2]
[361086305,1747243843854,-514.03,0.00010958,2]
[361086306,1747243843866,-429.26,0.00010958,2]
[361086307,1747243843875,-726.28,0.00010958,2]
[361086308,1747243843884,-722.05,0.00010958,2]
[361086309,1747243843893,-921.78,0.00010958,2]
[361086310,1747243843903,-522.60127816,0.00010958,2]
[361086311,1747243843912,-400.0,0.00010958,2]
[361086312,1747243843924,-400.0,0.00010958,2]
[361086313,1747243843933,-5646.27,0.00010958,2]
[361086314,1747243843943,-1327.24,0.00010958,2]
[361086315,1747243843953,-400.0,0.00010958,2]
[361086316,1747243843962,-678.98,0.00010958,2]
[361086317,1747243843972,-400.0,0.00010958,2]
[361086318,1747243843981,-1450.07,0.00010958,2]
[361086319,1747243843991,-1206.56,0.00010958,2]
[361086320,1747243844000,-400.0,0.00010958,2]
[361086321,1747243844010,-854.06,0.00010958,2]
[361086322,1747243844020,-400.0,0.00010958,2]
[361086323,1747243844029,-400.0,0.00010958,2]
[361086324,1747243844039,-369.5491377,0.00010958,2]
[361086325,1747243844049,-400.0,0.00010958,2]
[361086326,1747243844059,-400.0,0.00010958,2]
[361086327,1747243844068,-418.21,0.00010958,2]
[361086328,1747243844077,-400.0,0.00010958,2]
[361086329,1747243844087,-400.0,0.00010958,2]
[361086330,1747243844096,-312.98852225,0.00010958,2]
[361086331,1747243844106,-400.0,0.00010958,2]
[361086332,1747243844115,-1412.45,0.00010958,2]
[361086333,1747243844125,-400.0,0.00010958,2]
[361086334,1747243844134,-400.0,0.00010958,2]
[361086335,1747243844144,-3627.84,0.00010958,2]
[361086336,1747243844153,-400.0,0.00010958,2]
[361086337,1747243844163,-400.0,0.00010958,2]
[361086338,1747243844173,-400.0,0.00010958,2]
[361086339,1747243844183,-400.0,0.00010958,2]
[361086340,1747243844192,-400.0,0.00010958,2]
[361086341,1747243844201,-400.0,0.00010958,2]
[361086342,1747243844211,-616.40256411,0.00010959,2]
[361086343,1747243844221,-151.0,0.00010992,2]
[361086344,1747243844230,-7202.1683,0.00010992,2]
[361086345,1747243844240,-1000.0,0.00011,2]
[361086346,1747243844249,-1000.0,0.00011,2]
[361086347,1747243844259,-1000.0,0.00011,2]
[361086348,1747243844268,-1000.0,0.00011,2]
[361086349,1747243844278,-1000.0,0.00011,2]
[361086350,1747243844287,-1000.0,0.00011,2]
[361086351,1747243844296,-5303.65284892,0.00011,2]
[361086352,1747243844305,-151.0,0.00011,2]
[361086353,1747243844315,-151.0,0.00011,2]
[361086354,1747243844324,-200.0,0.00011,2]
[361086355,1747243844333,-151.0,0.0001101,2]
[361086356,1747243844342,-151.0,0.0001101,2]
[361086357,1747243844351,-151.0,0.0001101,2]
[361086358,1747243844360,-500.0,0.0001101,2]
[361086359,1747243844370,-500.0,0.0001101,2]
[361086360,1747243844379,-200.0,0.0001101,2]
[361086361,1747243844389,-616.40256411,0.00011014,2]
[361086362,1747243844399,-200.0,0.00011018,2]
[361086363,1747243844410,-616.40256411,0.00011041,2]
[361086364,1747243844423,-509.7823,0.00011044,2]
[361086365,1747243844433,-200.0,0.00011044,2]
[361086366,1747243844444,-500.0,0.00011073,2]
[361086367,1747243844454,-500.0,0.00011091,2]
[361086368,1747243844463,-500.0,0.00011091,2]
[361086369,1747243844473,-1038.04,0.00011091,2]
[361086370,1747243844483,-151.0,0.00011092,2]
[361086371,1747243844494,-151.0,0.00011092,2]
[361086372,1747243844505,-151.0,0.00011092,2]
[361086373,1747243844515,-151.0,0.00011092,2]
[361086374,1747243844525,-172.190257,0.00011092,2]
[361086375,1747243844535,-151.0,0.00011092,2]
[361086376,1747243844545,-151.0,0.00011092,2]
[361086377,1747243844554,-151.0,0.00011092,2]
[361086378,1747243844564,-151.0,0.00011092,2]
[361086379,1747243844573,-151.0,0.00011092,2]
[361086380,1747243844583,-151.0,0.00011092,2]
[361086381,1747243844592,-151.0,0.00011092,2]
[361086382,1747243844602,-151.0,0.00011092,2]
[361086383,1747243844612,-151.0,0.00011092,2]
[361086384,1747243844623,-151.0,0.00011092,2]
[361086385,1747243844633,-183.891336,0.00011092,2]
[361086386,1747243844642,-183.891336,0.00011092,2]
[361086387,1747243844653,-198.49205,0.00011092,2]
[361086388,1747243844665,-151.0,0.00011092,2]
[361086389,1747243844675,-151.0,0.00011092,2]
[361086390,1747243844685,-151.0,0.00011092,2]
[361086391,1747243844696,-151.0,0.00011092,2]
[361086392,1747243844707,-151.0,0.00011092,2]
[361086393,1747243844718,-151.0,0.00011092,2]
[361086394,1747243844729,-167.107458,0.00011092,2]
[361086395,1747243844740,-151.0,0.00011092,2]
[361086396,1747243844751,-151.0,0.00011092,2]
[361086397,1747243844761,-151.0,0.00011092,2]
[361086398,1747243844771,-151.0,0.00011092,2]
[361086399,1747243844781,-151.0,0.00011092,2]
[361086400,1747243844791,-160.929119,0.00011092,2]
[361086401,1747243844801,-151.0,0.00011092,2]
[361086402,1747243844811,-151.0,0.00011092,2]
[361086403,1747243844821,-151.0,0.00011092,2]
[361086404,1747243844831,-154.535928,0.00011092,2]
[361086405,1747243844841,-151.0,0.00011092,2]
[361086406,1747243844852,-1184.251896,0.00011092,2]
[361086407,1747243844864,-1184.251896,0.00011092,2]
[361086408,1747243844875,-151.0,0.00011092,2]
[361086409,1747243844885,-151.0,0.00011092,2]
[361086410,1747243844896,-151.0,0.00011092,2]
[361086411,1747243844907,-151.0,0.00011092,2]
[361086412,1747243844919,-277.07873,0.00011092,2]
[361086413,1747243844929,-151.0,0.00011092,2]
[361086414,1747243844939,-277.07873,0.00011092,2]
[361086415,1747243844949,-151.0,0.00011092,2]
[361086416,1747243844959,-179.140885,0.00011092,2]
[361086417,1747243844968,-179.140885,0.00011092,2]
[361086418,1747243844978,-151.0,0.00011092,2]
[361086419,1747243844987,-151.0,0.00011092,2]
[361086420,1747243844997,-151.0,0.00011092,2]
[361086421,1747243845006,-511.286251,0.00011092,2]
[361086422,1747243845016,-511.286251,0.00011092,2]
[361086423,1747243845026,-191.003816,0.00011092,2]
[361086424,1747243845036,-191.003816,0.00011092,2]
[361086425,1747243845046,-151.0,0.00011092,2]
[361086426,1747243845056,-151.0,0.00011092,2]
[361086427,1747243845065,-151.0,0.00011092,2]
[361086428,1747243845075,-152.359662,0.00011092,2]
[361086429,1747243845084,-151.0,0.00011092,2]
[361086430,1747243845094,-151.0,0.00011092,2]
[361086431,1747243845104,-153.048806,0.00011092,2]
[361086432,1747243845113,-151.0,0.00011092,2]
[361086433,1747243845123,-151.0,0.00011092,2]
[361086434,1747243845132,-3658.564916,0.00011092,2]
[361086435,1747243845142,-3658.564916,0.00011092,2]
[361086436,1747243845152,-151.0,0.00011092,2]
[361086437,1747243845162,-283.025,0.00011092,2]
[361086438,1747243845172,-151.0,0.00011092,2]
[361086439,1747243845182,-151.0,0.00011092,2]
[361086440,1747243845191,-151.0,0.00011092,2]
[361086441,1747243845201,-151.0,0.00011092,2]
[361086442,1747243845210,-151.0,0.00011092,2]
[361086443,1747243845220,-151.0,0.00011092,2]
[361086445,1747243845229,-8511.6751694,0.00011092,2]
[361086447,1747243845239,-151.0,0.00011092,2]
[361086449,1747243845248,-151.0,0.00011092,2]
[361086450,1747243845257,-17233.7425468,0.00011092,2]
[361086451,1747243845267,-157.070108,0.00011092,2]
[361086452,1747243845276,-151.0,0.00011092,2]
[361086453,1747243845286,-151.0,0.00011092,2]
[361086456,1747243845296,-151.0,0.00011092,2]
[361086458,1747243845306,-151.0,0.00011092,2]
[361086460,1747243845316,-151.0,0.00011092,2]
[361086462,1747243845325,-151.0,0.00011092,2]
[361086464,1747243845334,-151.0,0.00011092,2]
[361086466,1747243845344,-151.0,0.00011092,2]
[361086468,1747243845353,-151.0,0.00011092,2]
[361086470,1747243845362,-152.39944,0.00011092,2]
[361086472,1747243845372,-586.592102,0.00011092,2]
[361086474,1747243845382,-586.592102,0.00011092,2]
[361086475,1747243845392,-151.0,0.00011092,2]
[361086477,1747243845402,-586.592102,0.00011092,2]
[361086478,1747243845411,-586.592102,0.00011092,2]
[361086479,1747243845422,-190777.73705252,0.00011092,2]
[361086480,1747243845438,-29476.61494738,0.00011092,2]
[361086481,1747243845447,-151.0,0.00011092,2]
[361086482,1747243845456,-151.0,0.00011092,2]
[361086483,1747243845465,-151.0,0.00011092,2]
[361086484,1747243845475,-18267.7449999,0.00011092,2]
[361086485,1747243845484,-151.0,0.00011092,2]
[361086486,1747243845493,-151.0,0.00011092,2]
[361086487,1747243845502,-454.935855,0.00011092,2]
[361086488,1747243845511,-680.593514,0.00011092,2]
[361086489,1747243845521,-151.0,0.00011092,2]
[361086490,1747243845530,-151.0,0.00011092,2]
[361086491,1747243845539,-454.935855,0.00011092,2]
[361086492,1747243845549,-680.593514,0.00011092,2]
[361086493,1747243845559,-151.0,0.00011092,2]
[361086494,1747243845568,-301.38548,0.00011092,2]
[361086495,1747243845578,-151.0,0.00011092,2]
[361086496,1747243845587,-2475.177985,0.00011092,2]
[361086497,1747243845597,-645.82611581,0.00011092,2]
[361086498,1747243845606,-2475.177985,0.00011092,2]
[361086499,1747243845616,-154.091666,0.00011092,2]
[361086500,1747243845627,-2475.177985,0.00011092,2]
[361086501,1747243845636,-2475.177985,0.00011092,2]
[361086502,1747243845646,-151.0,0.00011092,2]
[361086503,1747243845655,-447.8597391,0.00011092,2]
[361086504,1747243845665,-151.0,0.00011092,2]
[361086505,1747243845674,-151.0,0.00011092,2]
[361086506,1747243845685,-616.40256411,0.00011096,2]
[361086507,1747243845695,-9837.69306116,0.00011099,2]
[361086508,1747243845705,-9641.27028379,0.00011099,2]
[361086509,1747243845715,-261.63848029,0.00011099,2]
[361086510,1747243845725,-8210.70630627,0.00011099,2]
[361086511,1747243845735,-1366.46,0.000111,2]
[361086512,1747243845745,-3896.08,0.000111,2]
[361086513,1747243845755,-1834.706,0.00011118,2]
[361086514,1747243845765,-616.40256411,0.00011123,2]
[361086515,1747243845774,-1185.14900538,0.00011125,2]
[361086516,1747243845794,-719.32,0.00011125,2]
[361086522,1747243845899,-653.7060522,0.00011125,2]
[361086525,1747243846984,-563.8,0.00010958,2]
[361086526,1747243846994,-75.19585001,0.00010958,2]
[361086527,1747243847005,-502.21414999,0.00010958,2]
[361086528,1747243847015,-130.91084309,0.00011125,2]
[361086529,1747243847026,-5751.21782179,0.00011125,2]
[361086530,1747243847039,-1397.3893387,0.00011125,2]
[361086531,1747243847048,-9641.2702837,0.00011125,2]
[361086532,1747243847058,-163.023,0.00011132,2]
[361086533,1747243847067,-430.35442907,0.00011132,2]
[361086534,1747243847078,-196.52801518,0.00011132,2]
[361086535,1747243847087,-1653.542683,0.00011175,2]
[361086536,1747243847096,-500.0,0.000112,2]
[361086537,1747243847106,-500.0,0.000112,2]
[361086538,1747243847115,-927.89225036,0.00011222,2]
[361086539,1747243847144,-16.74087716,0.00011222,2]
[361086540,1747243847154,-151.0,0.00011225,2]
[361086541,1747243847163,-151.0,0.00011225,2]
[361086542,1747243847173,-151.0,0.00011225,2]
[361086543,1747243847183,-635.87050227,0.00011231,2]
[361086544,1747243847195,-151.0,0.00011231,2]
[361086545,1747243847206,-151.0,0.00011231,2]
[361086546,1747243847215,-151.0,0.00011231,2]
[361086547,1747243847224,-151.0,0.00011231,2]
[361086548,1747243847234,-151.0,0.00011231,2]
[361086549,1747243847243,-183.891336,0.00011231,2]
[361086550,1747243847252,-183.891336,0.00011231,2]
[361086551,1747243847261,-300.0,0.00011231,2]
[361086552,1747243847271,-300.0,0.00011231,2]
[361086553,1747243847280,-300.0,0.00011231,2]
[361086554,1747243847291,-1038.04,0.00011231,2]
[361086555,1747243847299,-1038.04,0.00011231,2]
[361086556,1747243847307,-1038.04,0.00011231,2]
[361086557,1747243847315,-817.0,0.00011232,2]
[361086558,1747243847323,-151.0,0.00011232,2]
[361086559,1747243847332,-151.0,0.00011232,2]
[361086560,1747243847341,-151.0,0.00011232,2]
[361086561,1747243847350,-151.0,0.00011232,2]
[361086562,1747243847359,-151.0,0.00011232,2]
[361086563,1747243847369,-151.0,0.00011232,2]
[361086564,1747243847378,-224.602668,0.00011232,2]
[361086565,1747243847387,-224.602668,0.00011232,2]
[361086566,1747243847396,-224.602668,0.00011232,2]
[361086567,1747243847405,-224.602668,0.00011232,2]
[361086568,1747243847415,-208.202388,0.00011232,2]
[361086569,1747243847424,-208.202388,0.00011232,2]
[361086570,1747243847433,-208.202388,0.00011232,2]
[361086571,1747243847442,-208.202388,0.00011232,2]
[361086572,1747243847451,-208.202388,0.00011232,2]
[361086573,1747243847461,-208.202388,0.00011232,2]
[361086574,1747243847471,-151.0,0.00011232,2]
[361086575,1747243847480,-151.0,0.00011232,2]
[361086576,1747243847489,-151.0,0.00011232,2]
[361086577,1747243847498,-151.0,0.00011232,2]
[361086578,1747243847507,-151.0,0.00011232,2]
[361086579,1747243847517,-151.0,0.00011232,2]
[361086580,1747243847527,-151.0,0.00011232,2]
[361086581,1747243847536,-151.0,0.00011232,2]
[361086582,1747243847545,-151.0,0.00011232,2]
[361086583,1747243847554,-151.0,0.00011232,2]
[361086584,1747243847563,-151.0,0.00011232,2]
[361086585,1747243847572,-151.0,0.00011232,2]
[361086586,1747243847582,-157.364728,0.00011232,2]
[361086587,1747243847591,-157.364728,0.00011232,2]
[361086588,1747243847600,-157.364728,0.00011232,2]
[361086589,1747243847609,-157.364728,0.00011232,2]
[361086590,1747243847619,-157.364728,0.00011232,2]
[361086591,1747243847628,-157.364728,0.00011232,2]
[361086592,1747243847637,-157.364728,0.00011232,2]
[361086593,1747243847646,-157.364728,0.00011232,2]
[361086594,1747243847655,-151.0,0.00011232,2]
[361086595,1747243847665,-175.635094,0.00011232,2]
[361086596,1747243847673,-175.635094,0.00011232,2]
[361086597,1747243847682,-151.0,0.00011232,2]
[361086598,1747243847691,-175.635094,0.00011232,2]
[361086599,1747243847701,-151.0,0.00011232,2]
[361086600,1747243847710,-151.0,0.00011232,2]
[361086601,1747243847720,-175.635094,0.00011232,2]
[361086602,1747243847731,-151.0,0.00011232,2]
[361086603,1747243847741,-151.0,0.00011232,2]
[361086604,1747243847751,-175.635094,0.00011232,2]
[361086605,1747243847762,-151.0,0.00011232,2]
[361086606,1747243847773,-151.0,0.00011232,2]
[361086607,1747243847783,-175.635094,0.00011232,2]
[361086608,1747243847793,-175.635094,0.00011232,2]
[361086609,1747243847802,-175.635094,0.00011232,2]
[361086610,1747243847812,-151.0,0.00011232,2]
[361086611,1747243847823,-151.0,0.00011232,2]
[361086612,1747243847833,-151.0,0.00011232,2]
[361086613,1747243847843,-151.0,0.00011232,2]
[361086614,1747243847852,-151.0,0.00011232,2]
[361086615,1747243847864,-159.774483,0.00011232,2]
[361086616,1747243847878,-206.290275,0.00011232,2]
[361086617,1747243847887,-151.0,0.00011232,2]
[361086618,1747243847897,-285.002231,0.00011232,2]
[361086619,1747243847907,-151.0,0.00011232,2]
[361086620,1747243847919,-151.0,0.00011232,2]
[361086621,1747243847928,-151.0,0.00011232,2]
[361086622,1747243847937,-220.859058,0.00011232,2]
[361086623,1747243847947,-151.0,0.00011232,2]
[361086624,1747243847957,-151.0,0.00011232,2]
[361086625,1747243847967,-276.090652,0.00011232,2]
[361086626,1747243847976,-151.0,0.00011232,2]
[361086627,1747243847985,-151.0,0.00011232,2]
[361086628,1747243847994,-151.0,0.00011232,2]
[361086629,1747243848003,-45.32011488,0.00011232,2]
[361086630,1747243848030,-255.5,0.00010958,2]
[361086631,1747243848042,-144.5,0.00010958,2]
[361086632,1747243848051,-105.67988512,0.00011232,2]
[361086633,1747243848061,-151.0,0.00011232,2]
[361086634,1747243848070,-151.0,0.00011232,2]
[361086635,1747243848079,-96.67151431,0.00011232,2]
[361086636,1747243848102,-54.32848569,0.00011232,2]
[361086637,1747243848111,-183.891336,0.00011232,2]
[361086638,1747243848120,-133.50026956,0.00011232,2]
[361086647,1747244421847,903.34,9.93e-05,2]
[361086648,1747244437335,250.0,9.93e-05,2]
[361086649,1747244487214,150.0,9.888e-05,7]
[361086650,1747244589228,1000.0,9.775e-05,2]
[361086651,1747244658597,583.98,9.861e-05,2]
[361086653,1747244801288,100.77401965,9.844e-05,2]
[361086654,1747244801311,2838.09401965,9.844e-05,2]
[361086655,1747244801335,2838.09401965,9.844e-05,2]
[361086656,1747244801361,9874.44794105,9.844e-05,2]
[361086657,1747244846434,539.22,8.219e-05,2]
[361086658,1747244930966,195.91,9.797e-05,2]
[361086799,1747245037533,-1000.0,9.976e-05,2]
[361086800,1747245037543,-200.0,9.983e-05,2]
[361086801,1747245037553,-15.90976923,9.989e-05,2]
[361086802,1747245037586,-184.09023077,9.989e-05,2]
[361086803,1747245037595,-200.0,0.00010024,2]
[361086804,1747245037605,-58.74837808,0.00010078,2]
[361086805,1747245037640,-269.00162192,0.00010078,2]
[361086806,1747245037650,-168.34,0.00010172,2]
[361086807,1747245037659,-168.34,0.00010198,2]
[361086808,1747245037669,-188.088,0.000102,2]
[361086809,1747245037678,-168.34,0.00010223,2]
[361086810,1747245037690,-1000.0,0.00010314,2]
[361086811,1747245037699,-588.805802,0.00010392,2]
[361086812,1747245037709,-164.32,0.00010445,2]
[361086813,1747245037718,-539.22,0.00010467,2]
[361086814,1747245037727,-207.4,0.00010488,2]
[361086815,1747245037737,-329.90154267,0.00010554,2]
[361086816,1747245037746,-670.09845733,0.00010731,2]
[361086817,1747245037755,-1000.0,0.00010841,2]
[361086818,1747245037765,-1200.0,0.00010845,2]
[361086819,1747245037774,-300.0,0.00010846,2]
[361086820,1747245037783,-300.0,0.00010847,2]
[361086821,1747245037793,-5274.68248245,0.00010848,2]
[361086823,1747245037803,-151.0,0.00010852,2]
[361086825,1747245037812,-151.0,0.00010852,2]
[361086826,1747245037821,-151.0,0.00010852,2]
[361086827,1747245037830,-1439.04716418,0.00010852,2]
[361086828,1747245037839,-668.65185757,0.00010852,2]
[361086829,1747245037849,-168.109438,0.00010852,2]
[361086830,1747245037858,-151.0,0.00010852,2]
[361086831,1747245037867,-614.18811574,0.00010858,2]
[361086832,1747245037876,-43650.9246,0.00010858,2]
[361086833,1747245037886,-1188.4237,0.00010858,2]
[361086834,1747245037896,-65240.298,0.00010858,2]